Workbook

Sheet Sheet1
A1: 文物采样点 | B1: 二氧化硅(SiO2) | C1: 氧化钠(Na2O) | D1: 氧化钾(K2O) | E1: 氧化钙(CaO) | F1: 氧化镁(MgO) | G1: 氧化铝(Al2O3) | H1: 氧化铁(Fe2O3) | I1: 氧化铜(CuO) | J1: 氧化铅(PbO) | K1: 氧化钡(BaO) | L1: 五氧化二磷(P2O5) | M1: 氧化锶(SrO) | N1: 氧化锡(SnO2) | O1: 二氧化硫(SO2) | P1: F1 | Q1: F2 | R1: F3 | S1: F4
A2: 01 | B2: 69.33 | C2: 0 | D2: 9.99 | E2: 6.32 | F2: 0.87 | G2: 3.93 | H2: 1.74 | I2: 3.87 | J2: 0 | K2: 0 | L2: 1.17 | M2: 0 | N2: 0 | O2: 0.39 | P2: =B2*-0.154+C2*-0.26+D2*-0.155+E2*-0.167+F2*0.379+G2*0.311+H2*0.386+I2*0.158+J2*0.023+K2*0.308+L2*0.429+M2*0.398+N2*-0.064+O2*-0.032 -> -9.9562 | Q2: =B2*-0.476+C2*0.315+D2*0.3+E2*0.476+F2*-0.108+G2*0.229+H2*0.215+I2*0.277+J2*0.139+K2*0.014+L2*-0.07+M2*-0.051+N2*-0.368+O2*0.092 -> -24.78968 | R2: =B2*0.101+C2*0.229+D2*-0.149+E2*-0.088+F2*-0.225+G2*0.107+H2*-0.12+I2*-0.059+J2*0.566+K2*0.392+L2*-0.055+M2*0.029+N2*-0.064+O2*-0.588 -> 4.45162 | S2: =B2*-0.185+C2*0.343+D2*0.38+E2*-0.08+F2*0.094+G2*0.288+H2*-0.071+I2*-0.468+J2*-0.101+K2*-0.313+L2*0.188+M2*0.282+N2*0.31+O2*-0.249 -> -10.13368
A3: 03部位1 | B3: 87.05 | C3: 0 | D3: 5.19 | E3: 2.01 | F3: 0 | G3: 4.06 | H3: 0 | I3: 0.78 | J3: 0.25 | K3: 0 | L3: 0.66 | M3: 0 | N3: 0 | O3: 0 | P3: =B3*-0.154+C3*-0.26+D3*-0.155+E3*-0.167+F3*0.379+G3*0.311+H3*0.386+I3*0.158+J3*0.023+K3*0.308+L3*0.429+M3*0.398+N3*-0.064+O3*-0.032 -> -12.87103 | Q3: =B3*-0.476+C3*0.315+D3*0.3+E3*0.476+F3*-0.108+G3*0.229+H3*0.215+I3*0.277+J3*0.139+K3*0.014+L3*-0.07+M3*-0.051+N3*-0.368+O3*0.092 -> -37.78769 | R3: =B3*0.101+C3*0.229+D3*-0.149+E3*-0.088+F3*-0.225+G3*0.107+H3*-0.12+I3*-0.059+J3*0.566+K3*0.392+L3*-0.055+M3*0.029+N3*-0.064+O3*-0.588 -> 8.33546 | S3: =B3*-0.185+C3*0.343+D3*0.38+E3*-0.08+F3*0.094+G3*0.288+H3*-0.071+I3*-0.468+J3*-0.101+K3*-0.313+L3*0.188+M3*0.282+N3*0.31+O3*-0.249 -> -13.38978
A4: 03部位2 | B4: 61.71 | C4: 0 | D4: 12.37 | E4: 5.87 | F4: 1.11 | G4: 5.5 | H4: 2.16 | I4: 5.09 | J4: 1.41 | K4: 2.86 | L4: 0.7 | M4: 0.1 | N4: 0 | O4: 0 | P4: -7.3784 | Q4: -19.67296 | R4: 5.53584 | S4: -8.91028
A5: 04 | B5: 65.88 | C5: 0 | D5: 9.67 | E5: 7.12 | F5: 1.56 | G5: 6.44 | H5: 2.06 | I5: 2.18 | J5: 0 | K5: 0 | L5: 0.79 | M5: 0 | N5: 0 | O5: 0.36 | P5: -8.77234 | Q5: -22.7379 | R5: 4.29362 | S5: -8.18906
A6: 05 | B6: 61.58 | C6: 0 | D6: 10.95 | E6: 7.35 | F6: 1.77 | G6: 7.5 | H6: 2.62 | I6: 3.27 | J6: 0 | K6: 0 | L6: 0.94 | M6: 0.06 | N6: 0 | O6: 0.47 | P6: -7.46461 | Q6: -19.55867 | R6: 3.51183 | S6: -7.13269
A7: 06部位1 | B7: 67.65 | C7: 0 | D7: 7.37 | E7: 0 | F7: 1.98 | G7: 11.15 | H7: 2.39 | I7: 2.51 | J7: 0.2 | K7: 1.38 | L7: 4.18 | M7: 0.11 | N7: 0 | O7: 0 | P7: -3.75662 | Q7: -26.69286 | R7: 6.47463 | S7: -7.29698
A8: 06部位2 | B8: 59.81 | C8: 0 | D8: 7.68 | E8: 5.41 | F8: 1.73 | G8: 10.05 | H8: 6.04 | I8: 2.18 | J8: 0.35 | K8: 0.97 | L8: 4.5 | M8: 0.12 | N8: 0 | O8: 0 | P8: -2.56244 | Q8: -19.83222 | R8: 4.58741 | S8: -6.43043
A9: 13 | B9: 59.01 | C9: 2.86 | D9: 12.53 | E9: 8.7 | F9: 0 | G9: 6.16 | H9: 2.88 | I9: 4.73 | J9: 0 | K9: 0 | L9: 1.27 | M9: 0 | N9: 0 | O9: 0 | P9: -8.90658 | Q9: -16.03651 | R9: 3.94698 | S9: -6.27575
A10: 14 | B10: 62.47 | C10: 3.38 | D10: 12.28 | E10: 8.23 | F10: 0.66 | G10: 9.23 | H10: 0.5 | I10: 0.47 | J10: 1.62 | K10: 0 | L10: 0.16 | M10: 0 | N10: 0 | O10: 0 | P10: -10.28316 | Q10: -18.57548 | R10: 6.18903 | S10: -4.05833
A11: 16 | B11: 65.18 | C11: 2.1 | D11: 14.52 | E11: 8.27 | F11: 0.52 | G11: 6.18 | H11: 0.42 | I11: 1.07 | J11: 0.11 | K11: 0 | L11: 0 | M11: 0.04 | N11: 0 | O11: 0 | P11: -11.74672 | Q11: -20.31266 | R11: 4.66699 | S11: -5.18369
A12: 18 | B12: 79.46 | C12: 0 | D12: 9.42 | E12: 0 | F12: 1.53 | G12: 3.05 | H12: 0 | I12: 0 | J12: 0 | K12: 0 | L12: 1.36 | M12: 0.07 | N12: 2.36 | O12: 0 | P12: -11.70826 | Q12: -35.431 | R12: 6.38017 | S12: -9.09126
A13: 21 | B13: 76.68 | C13: 0 | D13: 0 | E13: 4.71 | F13: 1.22 | G13: 6.19 | H13: 2.37 | I13: 3.28 | J13: 1 | K13: 1.97 | L13: 1.1 | M13: 0 | N13: 0 | O13: 0 | P13: -7.6731 | Q13: -31.46428 | R13: 8.51785 | S13: -14.87932
A14: A1 | B14: 78.45 | C14: 0 | D14: 0 | E14: 6.08 | F14: 1.86 | G14: 7.23 | H14: 2.15 | I14: 2.11 | J14: 0 | K14: 0 | L14: 1.06 | M14: 0.03 | N14: 0 | O14: 0.51 | P14: -8.52955 | Q14: -31.97542 | R14: 7.00372 | S14: -13.80195 | T14: =ABS(P14-N21)+ABS(Q14-O21)+ABS(R14-P21)+ABS(S14-Q21) -> 14.44527917
A15: A3 | B15: 31.95 | C15: 0 | D15: 1.36 | E15: 7.19 | F15: 0.81 | G15: 2.93 | H15: 7.06 | I15: 0.21 | J15: 39.58 | K15: 4.69 | L15: 2.68 | M15: 0.52 | N15: 0 | O15: 0 | P15: 1.35627 | Q15: -3.86504 | R15: 25.7717 | S15: -10.46378 | T15: =ABS(P15-N22)+ABS(Q15-O22)+ABS(R15-P22)+ABS(S15-Q22) -> 41.45679
A16: A4 | B16: 35.47 | C16: 0 | D16: 0.79 | E16: 2.89 | F16: 1.05 | G16: 7.07 | H16: 6.45 | I16: 0.96 | J16: 24.28 | K16: 8.31 | L16: 8.45 | M16: 0.28 | N16: 0 | O16: 0 | P16: 6.02505 | Q16: -9.2273 | R16: 19.44341 | S16: -8.65107 | T16: 43.34683
A17: A8 | B17: 51.12 | C17: 0 | D17: 0.23 | E17: 0.89 | F17: 0 | G17: 2.12 | H17: 0 | I17: 9.01 | J17: 21.24 | K17: 11.34 | L17: 1.46 | M17: 0.31 | N17: 0 | O17: 2.26 | P17: -1.31522 | Q17: -17.6582 | R17: 19.81271 | S17: -18.94262 | T17: 57.72875
N21: =AVERAGE(P2:P13) -> -8.589955 | O21: =AVERAGE(Q2:Q13) -> -24.40765917 | P21: 5.574285833 | Q21: -8.414270833
